bitfinex/quotes_SOLUSD_20260310
["timestamp","ask_amount","ask_price","bid_price","bid_amount"]
[1773113785109,12.20704544,86.418,86.392,0.66115247]
[1773113785323,12.20704544,86.418,86.394,0.66115247]
[1773113785723,0.63538213,86.424,86.394,0.66115247]
[1773113788520,5.75862821,86.43,86.394,0.66115247]
[1773113788521,0.63538213,86.422,86.394,0.66115247]
[1773113789913,0.63538213,86.419,86.394,0.66115247]
[1773113791106,0.63538213,86.417,86.39,0.1]
[1773113794912,5.75862821,86.42,86.39,0.1]
[1773113794913,0.60849244,86.415,86.39,0.1]
[1773113796037,5.76489753,86.41,86.39,0.1]
[1773113796236,0.60849244,86.409,86.39,0.1]
[1773113797133,12.18069138,86.414,86.391,0.64867556]
[1773113797335,0.60849244,86.413,86.391,0.64867556]
[1773113797727,0.60849244,86.413,86.39,0.1]
[1773113798225,0.60849244,86.411,86.39,0.1]
[1773113800621,0.60849244,86.409,86.39,0.1]
[1773113802138,0.60849244,86.407,86.381,0.2659191]
[1773113802815,0.60849244,86.407,86.382,0.64867556]
[1773113803633,12.18176281,86.406,86.39,0.115755]
[1773113803936,11.57327037,86.406,86.391,0.64867556]
[1773113804837,0.60849244,86.419,86.391,0.64867556]
[1773113805237,0.60849244,86.409,86.39,0.115755]
[1773113805728,0.60849244,86.407,86.39,0.115755]
[1773113807238,0.60849244,86.399,86.381,0.2659191]
[1773113807534,5.76489753,86.4,86.348,0.64867556]
[1773113807535,0.60849244,86.389,86.348,0.64867556]
[1773113807739,0.60849244,86.389,86.361,0.64867556]
[1773113808038,0.60849244,86.399,86.371,0.64867556]
[1773113808911,0.60849244,86.389,86.371,0.64867556]
[1773113809116,0.60849244,86.389,86.361,0.64867556]
[1773113809319,5.76489753,86.39,86.34,0.1]
[1773113809320,0.60849244,86.387,86.341,0.64867556]
[1773113809620,0.60849244,86.379,86.351,0.64867556]
[1773113810037,0.60849244,86.387,86.351,0.64867556]
[1773113811618,11.5759498,86.386,86.352,11.58050768]
[1773113811819,0.60849244,86.385,86.353,0.64867556]
[1773113814343,0.60849244,86.383,86.355,0.64867556]
[1773113815039,0.60849244,86.379,86.355,0.64867556]
[1773113816835,0.6281076,86.377,86.355,0.64867556]
[1773113818043,11.57702192,86.378,86.357,0.59219922]
[1773113819927,0.6281076,86.379,86.357,0.59219922]
[1773113820845,11.57635182,86.383,86.358,0.59219922]
[1773113821540,0.6281076,86.382,86.358,0.59219922]
[1773113821741,11.57586477,86.387,86.358,0.59219922]
[1773113821940,11.57586477,86.387,86.36,0.59219922]
[1773113822322,0.6281076,86.386,86.36,0.59219922]
[1773113823940,0.6281076,86.386,86.362,0.62138736]
[1773113824744,5.76489753,86.39,86.362,0.62138736]
[1773113824944,11.57606479,86.386,86.362,0.62138736]
[1773113825443,0.61572334,86.385,86.362,0.62138736]
[1773113825748,11.57606479,86.386,86.362,0.62138736]
[1773113825945,0.61572334,86.385,86.362,0.62138736]
[1773113827658,0.61572334,86.383,86.362,0.62138736]
[1773113828243,0.61572334,86.389,86.362,0.62138736]
[1773113828445,0.61572334,86.421,86.371,0.62138736]
[1773113828649,0.61572334,86.408,86.341,11.58198306]
[1773113828847,28.93010294,86.416,86.341,11.58198306]
[1773113828848,0.61572334,86.379,86.342,0.62138736]
[1773113830351,0.61572334,86.375,86.344,0.62138736]
[1773113832640,0.61572334,86.369,86.344,0.62138736]
[1773113832840,0.61572334,86.359,86.338,0.62138736]
[1773113834963,11.57970309,86.358,86.338,0.62138736]
[1773113835671,0.61572334,86.368,86.341,0.62138736]
[1773113836865,0.61572334,86.366,86.341,0.62138736]
[1773113839367,0.61572334,86.366,86.343,0.62138736]
[1773113839564,0.61572334,86.364,86.343,0.62138736]
[1773113842559,0.61572334,86.362,86.343,0.62138736]
[1773113843071,0.61572334,86.362,86.336,0.62138736]
[1773113845571,0.61572334,86.362,86.338,0.62138736]
[1773113845770,11.57930084,86.361,86.338,0.62138736]
[1773113846066,0.61572334,86.36,86.338,0.62138736]
[1773113846649,0.61572334,86.359,86.332,12.2045452]
[1773113847265,0.61572334,86.359,86.332,0.62138736]
[1773113847649,0.61572334,86.359,86.328,11.58369353]
[1773113847881,0.61572334,86.349,86.334,8.25460294]
[1773113850157,0.61572334,86.339,86.311,0.62138736]
[1773113850360,11.58104414,86.348,86.312,0.62138736]
[1773113850678,11.58104414,86.348,86.321,0.62138736]
[1773113851671,11.57983718,86.357,86.331,0.62138736]
[1773113852048,11.57983718,86.357,86.333,0.62138736]
[1773113853261,0.30268718,86.371,86.341,0.62138736]
[1773113853461,0.3032368,86.377,86.341,0.62138736]
[1773113854748,11.57728998,86.376,86.343,0.64535069]
[1773113854948,11.57728998,86.376,86.351,0.64535069]
[1773113856965,5.76973341,86.37,86.351,0.64535069]
[1773113857279,0.30536654,86.371,86.351,0.64535069]
[1773113858378,11.88317497,86.376,86.351,0.64535069]
[1773113858580,0.30588499,86.373,86.351,0.64535069]
[1773113858965,0.30639806,86.369,86.34,11.58204968]
[1773113859167,0.30639806,86.359,86.34,11.58204968]
[1773113859774,0.30690644,86.369,86.341,0.64535069]
[1773113860364,11.57755806,86.374,86.341,0.64535069]
[1773113860769,0.30740161,86.374,86.343,0.64535069]
[1773113863684,11.5776921,86.373,86.344,11.58158065]
[1773113864282,5.76973341,86.37,86.345,0.64535069]
[1773113865772,11.57715993,86.377,86.347,0.64535069]
[1773113866082,11.57715993,86.377,86.351,0.64535069]
[1773113866383,3.69383402,86.383,86.351,0.64535069]
[1773113866683,0.30982318,86.399,86.361,0.64535069]
[1773113867584,57.85244867,86.427,86.36,5.76973341]
[1773113867585,0.31028823,86.414,86.381,0.64535069]
[1773113867773,11.57233286,86.413,86.381,11.57655523]
[1773113867974,11.8830808,86.413,86.382,0.64535069]
[1773113868186,0.31074794,86.412,86.382,0.64535069]
[1773113869085,34.69833309,86.42,86.371,0.64535069]
[1773113869086,0.3112019,86.399,86.371,0.64535069]
[1773113869459,0.3112019,86.399,86.372,0.64535069]
[1773113871579,0.31254339,86.408,86.372,0.64535069]
[1773113872090,0.31254339,86.408,86.374,0.64490498]
[1773113872380,0.31254339,86.408,86.381,0.64490498]
[1773113874984,0.31425174,86.414,86.382,0.64490498]
[1773113875576,0.31425174,86.409,86.382,0.64490498]
[1773113876166,0.31425174,86.409,86.383,0.64490498]
[1773113876969,0.31507618,86.398,86.371,0.64490498]
[1773113877164,0.31507618,86.398,86.37,5.76973341]
[1773113877165,0.31507618,86.398,86.373,0.64490498]
[1773113877365,11.57420803,86.399,86.373,0.64490498]
[1773113877772,0.31507618,86.403,86.373,0.64490498]
[1773113878092,11.57380616,86.402,86.373,0.64490498]
[1773113879891,11.57380616,86.402,86.375,0.64490498]
[1773113880984,11.57380616,86.402,86.381,0.64490498]
[1773113881995,0.31704914,86.406,86.381,0.64490498]
[1773113883191,0.31704914,86.406,86.371,0.64490498]
[1773113883681,5.76973341,86.39,86.365,0.6485974]
[1773113883879,0.31818941,86.369,86.326,0.6485974]
[1773113884090,9.46356743,86.4,86.326,0.6485974]
[1773113884091,5.76973341,86.35,86.326,0.6485974]
[1773113885499,0.31818941,86.352,86.327,0.6485974]
[1773113885692,0.31856745,86.349,86.322,0.6485974]
[1773113886081,3.69383402,86.38,86.341,0.6485974]
[1773113886293,3.69383402,86.381,86.351,0.6485974]
[1773113886891,0.31931084,86.38,86.351,0.6485974]
[1773113887200,3.69383402,86.381,86.351,0.6485974]
[1773113887581,0.31931084,86.379,86.351,0.6485974]
[1773113887982,0.31967469,86.368,86.341,0.6485974]
[1773113890803,0.32073875,86.366,86.341,0.6485974]
[1773113891012,0.32073875,86.359,86.332,0.6485974]
[1773113891385,0.32073875,86.359,86.333,0.6485974]
[1773113891587,0.32073875,86.359,86.288,62.8]
[1773113891787,5.76973341,86.34,86.312,0.6485974]
[1773113892388,0.32108757,86.339,86.312,0.6485974]
[1773113892980,0.32108757,86.339,86.3,0.1]
[1773113893204,3.69383402,86.364,86.31,5.86973341]
[1773113893205,11.58183735,86.343,86.31,5.86973341]
[1773113893411,0.64830028,86.342,86.31,5.86973341]
[1773113893580,0.64830028,86.342,86.311,11.58600873]
[1773113893988,0.64830028,86.339,86.311,11.58600873]
[1773113894199,0.64830028,86.339,86.31,17.45584579]
[1773113895087,0.64830028,86.337,86.311,0.6485974]
[1773113895287,0.64830028,86.329,86.31,0.1]
[1773113895903,11.5823855,86.338,86.31,0.1]
[1773113895904,0.64830028,86.319,86.31,0.1]
[1773113896088,0.64830028,86.319,86.3,0.1]
[1773113896280,0.64830028,86.337,86.301,0.6485974]
[1773113896485,0.64830028,86.339,86.311,0.6485974]
[1773113896907,11.58217857,86.34,86.311,0.6485974]
[1773113897202,0.64830028,86.345,86.313,0.6485974]
[1773113897394,0.64830028,86.343,86.313,0.6485974]
[1773113897781,5.76973341,86.34,86.313,0.6485974]
[1773113897987,0.64830028,86.329,86.305,0.6485974]
[1773113898388,3.69383402,86.341,86.311,0.6485974]
[1773113898891,5.76973341,86.34,86.311,0.6485974]
[1773113899610,11.58158065,86.344,86.313,0.6485974]
[1773113900503,11.58026464,86.354,86.321,0.6485974]
[1773113900708,46.28595085,86.42,86.312,40.55056075]
[1773113900709,11.57881925,86.365,86.331,0.6485974]
[1773113900899,5.76973341,86.38,86.341,0.6485974]
[1773113901098,0.64830028,86.379,86.351,0.6485974]
[1773113901296,0.64830028,86.385,86.351,0.6485974]
[1773113901806,0.64830028,86.379,86.351,0.6485974]
[1773113901987,5.76973341,86.37,86.341,0.6485974]
[1773113902187,0.64830028,86.377,86.342,0.6485974]
[1773113904613,11.57728998,86.376,86.343,11.58171478]
[1773113904818,11.57728998,86.376,86.344,0.6485974]
[1773113904988,12.22559026,86.376,86.344,0.6485974]
[1773113905197,0.64830028,86.375,86.344,0.6485974]
[1773113906590,5.76973341,86.38,86.353,0.6485974]
[1773113906794,11.5768879,86.379,86.353,0.6485974]
[1773113908015,5.76973341,86.39,86.361,0.6485974]
[1773113908814,11.57554781,86.389,86.361,11.57917208]
[1773113908998,11.57554781,86.389,86.362,0.6485974]
[1773113909511,3.69383402,86.391,86.362,0.6485974]
[1773113910200,11.57540684,86.391,86.362,0.6485974]
[1773113910403,0.64830028,86.389,86.362,0.6485974]
[1773113911316,11.5756818,86.388,86.362,0.6485974]
[1773113911534,0.64830028,86.387,86.362,0.6485974]
[1773113912214,11.5756818,86.388,86.355,0.6485974]
[1773113912215,0.64830028,86.379,86.355,0.6485974]
[1773113912446,0.64830028,86.387,86.355,0.6485974]
[1773113913713,11.5759498,86.386,86.356,11.57997128]
[1773113913908,11.5759498,86.386,86.357,0.60070251]
[1773113914704,17.34517254,86.39,86.361,0.60070251]
[1773113916417,17.34517254,86.39,86.36,5.76973341]
[1773113916418,17.97762063,86.39,86.363,0.60070251]
[1773113916618,0.63244809,86.389,86.363,0.60070251]
[1773113916827,12.20531665,86.409,86.363,0.60070251]
[1773113917002,0.63244809,86.408,86.371,0.60070251]
[1773113917718,5.76651937,86.4,86.371,0.60070251]
[1773113919121,11.57380616,86.402,86.373,0.60070251]
[1773113919724,12.20625425,86.402,86.373,0.60070251]
[1773113919935,0.63244809,86.401,86.373,0.60070251]
[1773113921205,0.63244809,86.399,86.373,0.60070251]
[1773113921824,11.57407407,86.4,86.375,0.60070251]
[1773113922323,12.20652216,86.4,86.375,0.60070251]
[1773113922735,0.63244809,86.389,86.352,0.60070251]
[1773113922915,0.63244809,86.379,86.355,11.58001309]
[1773113923120,0.63244809,86.377,86.352,0.60070251]
[1773113923313,0.63244809,86.377,86.321,62.8]
[1773113923314,0.63244809,86.359,86.331,0.60070251]
[1773113923508,5.76651937,86.36,86.331,0.60070251]
[1773113923715,0.63244809,86.365,86.331,0.60070251]
[1773113924023,0.63244809,86.369,86.331,0.60070251]
[1773113924724,12.21074415,86.369,86.341,0.60070251]
[1773113925028,0.63244809,86.368,86.341,0.60070251]
[1773113926930,0.63244809,86.366,86.341,0.60070251]
[1773113927504,28.94255481,86.378,86.343,0.60070251]
[1773113927505,0.63244809,86.369,86.343,0.60070251]
[1773113928121,12.21067638,86.369,86.343,0.60070251]
[1773113929318,0.63244809,86.385,86.345,0.60070251]
[1773113929515,0.63244809,86.385,86.344,11.58158065]
[1773113929516,5.76651937,86.38,86.351,0.60070251]
[1773113929824,11.5756818,86.388,86.351,0.60070251]
[1773113929825,0.63244809,86.384,86.351,0.60070251]
[1773113930628,0.63244809,86.379,86.351,0.60070251]
[1773113931426,5.76651937,86.38,86.352,11.58050768]
[1773113931427,0.63244809,86.377,86.352,11.58050768]
[1773113932023,0.63244809,86.377,86.352,12.18121019]
[1773113932612,11.57728998,86.376,86.352,12.18121019]
[1773113932812,0.63244809,86.375,86.352,12.18121019]
[1773113934626,0.63244809,86.375,86.352,11.58050768]
[1773113934949,0.63244809,86.375,86.353,0.60070251]
[1773113936017,9.46035339,86.4,86.361,0.60070251]
[1773113936018,5.76651937,86.39,86.361,0.60070251]
[1773113936219,11.57442349,86.398,86.37,5.76651937]
[1773113936534,11.57442349,86.398,86.371,0.60070251]
[1773113936923,11.57442349,86.398,86.373,0.62799807]
[1773113937452,0.60840594,86.403,86.373,0.62799807]
[1773113937635,0.60840594,86.399,86.373,0.62799807]
[1773113938943,11.57434199,86.398,86.373,0.62799807]
[1773113939735,11.57434199,86.398,86.375,0.62799807]
[1773113940237,0.60840594,86.412,86.381,0.62799807]
[1773113940438,0.60840594,86.409,86.381,0.62799807]
[1773113940823,0.60840594,86.409,86.371,0.62799807]
[1773113941018,0.60840594,86.399,86.373,0.62799807]
[1773113941825,0.60840594,86.405,86.373,0.62799807]
[1773113942915,0.60840594,86.399,86.373,0.62799807]
[1773113944330,28.93217119,86.41,86.373,0.62799807]
[1773113944331,0.62921763,86.405,86.373,0.62799807]
[1773113944535,17.33929244,86.41,86.373,0.62799807]
[1773113944536,0.62921763,86.409,86.381,0.63665839]
[1773113945842,11.57300249,86.408,86.383,0.63665839]
[1773113946943,12.20222012,86.408,86.383,0.63665839]
[1773113947142,0.62921763,86.407,86.383,0.63665839]
[1773113947741,0.62921763,86.405,86.383,0.63665839]
[1773113950632,11.57353826,86.404,86.383,0.63665839]
[1773113950832,0.62921763,86.403,86.383,0.63665839]
[1773113951035,0.62921763,86.409,86.385,0.63665839]
[1773113951236,0.62921763,86.408,86.385,0.63665839]
[1773113952758,5.76651937,86.41,86.32,5.76651937]
[1773113952759,0.62921763,86.397,86.356,0.63665839]
[1773113953055,0.62921763,86.389,86.356,0.63665839]
[1773113953847,0.62921763,86.379,86.356,12.21652246]
[1773113954055,40.51019698,86.398,86.361,0.63665839]
[1773113954056,0.62921763,86.397,86.361,0.63665839]
[1773113954727,11.57460993,86.396,86.363,0.63665839]
[1773113955349,12.20382756,86.396,86.363,0.63665839]
[1773113955524,11.57460993,86.396,86.371,0.63665839]
[1773113958551,0.62921763,86.407,86.373,0.63665839]
[1773113959141,0.62921763,86.399,86.373,0.63665839]
[1773113959865,0.62921763,86.397,86.373,0.63665839]
[1773113961162,0.62921763,86.397,86.338,62.8]
[1773113961163,0.62921763,86.379,86.346,0.63665839]
[1773113961333,5.76651937,86.37,86.346,0.63665839]
[1773113961842,17.34465577,86.37,86.347,0.63665839]
[1773113962037,11.5781364,86.37,86.347,0.63665839]
[1773113962244,17.34465577,86.37,86.347,0.63665839]
[1773113963552,17.34465577,86.37,86.346,11.58128565]
[1773113963553,0.62921763,86.359,86.335,0.63665839]
[1773113965153,11.57960082,86.359,86.335,0.63665839]
[1773113967532,11.5776921,86.373,86.341,0.63665839]
[1773113968147,12.20690973,86.373,86.341,0.63665839]
[1773113968847,0.62921763,86.396,86.351,0.63665839]
[1773113969040,0.62921763,86.389,86.361,0.63665839]
[1773113969441,12.20396153,86.395,86.37,5.76651937]
[1773113969643,12.20396153,86.395,86.371,0.63665839]
[1773113970141,0.62921763,86.394,86.371,0.63665839]
[1773113970839,11.5747439,86.395,86.371,0.63665839]
[1773113971036,0.62921763,86.394,86.371,0.63665839]
[1773113971255,5.76651937,86.39,86.371,0.63665839]
[1773113971556,0.62921763,86.394,86.371,0.63665839]
[1773113971747,5.76651937,86.39,86.363,0.63665839]
[1773113971941,0.62921763,86.389,86.363,0.63665839]
[1773113973755,11.5756818,86.388,86.363,0.63665839]
[1773113974866,11.5756818,86.388,86.365,0.6783516]
[1773113975164,0.65440657,86.408,86.371,0.6783516]
[1773113976247,5.76651937,86.4,86.373,0.6783516]
[1773113976562,0.65440657,86.399,86.373,0.6783516]
[1773113977147,11.57434199,86.398,86.373,0.6783516]
[1773113977861,0.65440657,86.409,86.381,0.6783516]
[1773113978059,0.65440657,86.409,86.375,0.6783516]
[1773113979667,0.65440657,86.407,86.375,0.6783516]
[1773113979866,0.65440657,86.407,86.376,11.57728998]
[1773113980050,0.65440657,86.407,86.377,0.6783516]
[1773113981371,0.65440657,86.409,86.377,0.6783516]
[1773113983455,0.65440657,86.398,86.377,0.6783516]
[1773113983651,0.65440657,86.389,86.366,11.57862199]
[1773113983875,0.65440657,86.389,86.366,12.25697359]
[1773113984079,0.65440657,86.389,86.366,0.6783516]
[1773113984779,0.65440657,86.389,86.361,11.57928542]
[1773113984978,0.65440657,86.389,86.362,0.6783516]
[1773113985179,5.76616492,86.39,86.362,0.6783516]
[1773113985180,12.23008837,86.388,86.362,0.6783516]
[1773113985760,11.5756818,86.388,86.362,0.6783516]
[1773113985979,11.5756818,86.388,86.371,0.6783516]
[1773113986773,0.65440657,86.397,86.371,0.6783516]
[1773113987977,11.57286856,86.409,86.373,0.6783516]
[1773113988180,0.65440657,86.408,86.373,0.6783516]
[1773113988964,0.65440657,86.408,86.381,0.6783516]
[1773113990485,11.57313643,86.407,86.382,0.6783516]
[1773113991182,11.57256982,86.412,86.382,0.6783516]
[1773113991564,12.22697639,86.412,86.382,0.6783516]
[1773113992081,0.65440657,86.411,86.382,0.6783516]
[1773113992682,11.57273463,86.41,86.382,0.6783516]
[1773113993479,0.65440657,86.409,86.382,0.6783516]
[1773113993687,0.65440657,86.409,86.369,0.6783516]
[1773113993992,0.65440657,86.399,86.371,0.6783516]
[1773113995061,12.21172134,86.398,86.371,0.6783516]
[1773113996583,0.63737935,86.404,86.371,0.6783516]
[1773113996771,0.63737935,86.404,86.373,0.65671971]
[1773113997351,0.63737935,86.399,86.373,0.65671971]
[1773113997780,0.63737935,86.399,86.361,0.65671971]
[1773113997989,0.63737935,86.399,86.364,0.65671971]
[1773113998365,40.50503997,86.409,86.364,0.65671971]
[1773113998569,0.63737935,86.431,86.402,11.57380616]
[1773113999184,0.63737935,86.429,86.398,11.57433526]
[1773113999581,0.63737935,86.429,86.399,0.65671971]
[1773113999787,5.76616492,86.43,86.397,0.65671971]
[1773113999969,0.63737935,86.429,86.397,0.65671971]
[1773114000169,0.63737935,86.429,86.4,5.76616492]
[1773114000569,0.63737935,86.429,86.401,0.65671971]
[1773114000766,0.63737935,86.427,86.4,5.76616492]
[1773114000970,11.57032443,86.428,85.815,0.31328037]
[1773114000971,0.63737935,86.409,86.361,0.65671971]
[1773114001185,5.76616492,86.37,86.322,0.65671971]
[1773114001387,0.63737935,86.379,86.341,0.65671971]
[1773114001887,0.63737935,86.369,86.341,0.65671971]
[1773114002786,12.21568829,86.369,86.342,11.58184892]
[1773114002978,0.63737935,86.368,86.343,0.65671971]
[1773114004295,0.63737935,86.368,86.345,0.66029685]
[1773114004483,11.57764651,86.374,86.345,0.66029685]
[1773114005381,11.57700253,86.379,86.345,0.66029685]
[1773114005568,12.23571278,86.379,86.345,0.66029685]
[1773114005881,12.23571278,86.379,86.346,11.58131239]
[1773114006080,12.23571278,86.379,86.347,0.66029685]
[1773114007379,0.65871025,86.378,86.349,0.66029685]
[1773114007970,0.65871025,86.378,86.35,5.76616492]
[1773114008171,0.65871025,86.378,86.351,0.66029685]
[1773114008671,11.57610329,86.385,86.361,0.66029685]
[1773114008987,11.57610329,86.385,86.36,5.76616492]
[1773114008988,0.65871025,86.409,86.381,0.66029685]
[1773114009366,0.65871025,86.409,86.383,0.66029685]
[1773114009667,12.23171274,86.408,86.383,0.66029685]
[1773114010076,0.65871025,86.407,86.383,0.66029685]
[1773114011986,5.76616492,86.41,86.37,5.76616492]
[1773114011987,0.65871025,86.405,86.376,0.66029685]
[1773114016501,11.57353826,86.404,86.377,11.57715595]
[1773114016793,12.23224851,86.404,86.378,0.66029685]
[1773114016995,12.23224851,86.404,86.381,0.66029685]
[1773114017700,0.65871025,86.403,86.381,0.66029685]
[1773114018000,0.65871025,86.399,86.371,0.66029685]
[1773114019695,11.57434199,86.398,86.371,0.66029685]
[1773114019877,0.65871025,86.397,86.371,0.66029685]
[1773114021694,0.65871025,86.397,86.373,0.66029685]
[1773114023073,0.65871025,86.395,86.367,12.2387089]
[1773114023397,0.65871025,86.395,86.368,0.66029685]
[1773114025898,11.57487788,86.394,86.37,0.66029685]
[1773114026196,12.23358813,86.394,86.371,0.66029685]
[1773114026581,11.57487788,86.394,86.371,0.66029685]
[1773114026789,0.65871025,86.393,86.371,0.66029685]
[1773114028284,0.65871025,86.402,86.373,0.66029685]
[1773114029683,29.58520341,86.426,86.391,0.66029685]
[1773114029894,11.57072606,86.425,86.391,0.66029685]
[1773114030285,11.57072606,86.425,86.4,17.3401479]
[1773114030498,11.570159,86.43,86.401,0.66029685]
[1773114031195,12.22886925,86.43,86.401,0.66029685]
[1773114032539,0.65871025,86.439,86.411,0.66029685]
[1773114032805,0.65871025,86.438,86.411,0.66029685]
[1773114034599,0.65473686,86.436,86.411,0.66029685]
[1773114036318,0.65473686,86.436,86.401,0.61568936]
[1773114036611,0.65473686,86.434,86.411,0.61568936]
[1773114037488,11.5696551,86.433,86.411,0.61568936]
[1773114037695,0.65473686,86.432,86.411,0.61568936]
[1773114039315,0.65473686,86.432,86.403,0.61568936]
[1773114039812,0.65473686,86.43,86.403,0.61568936]
[1773114040810,0.65473686,86.43,86.41,5.76616492]
[1773114041207,0.65473686,86.43,86.41,6.38185428]
[1773114041416,0.65473686,86.43,86.411,0.61568936]
[1773114042094,11.56885202,86.439,86.411,0.61568936]
[1773114042917,0.65473686,86.438,86.411,0.61568936]
[1773114047221,11.56751379,86.449,86.421,0.61568936]
[1773114047419,0.65473686,86.448,86.424,0.61568936]
[1773114047622,0.65473686,86.439,86.411,0.61568936]
[1773114047804,0.65473686,86.439,86.405,0.61568936]
[1773114048006,0.65473686,86.429,86.391,0.61568936]
[1773114048509,0.65473686,86.429,86.4,5.7614084]
[1773114048710,0.65473686,86.429,86.401,0.61568936]
[1773114049828,0.65473686,86.427,86.401,0.61568936]
[1773114050624,0.65473686,86.419,86.381,0.61568936]
[1773114050823,0.65473686,86.399,86.381,0.61568936]
[1773114051021,0.65473686,86.399,86.36,5.7614084]
[1773114051321,0.65473686,86.399,86.361,0.61568936]
[1773114051524,0.65473686,86.399,86.371,0.61568936]
[1773114052422,11.57434199,86.398,86.372,0.61568936]
[1773114054132,0.65473686,86.395,86.372,0.61568936]
[1773114057434,0.65374357,86.393,86.364,0.59716172]
[1773114057726,0.65374357,86.379,86.357,0.59716172]
[1773114059729,0.65374357,86.386,86.359,0.59716172]
[1773114059918,11.57608381,86.385,86.359,0.59716172]
[1773114060316,0.65374357,86.399,86.37,5.7614084]
[1773114060523,0.65374357,86.399,86.371,0.59716172]
[1773114060729,0.65374357,86.389,86.361,0.59716172]
[1773114061837,0.65374357,86.387,86.361,0.59716172]
[1773114063139,11.5756818,86.388,86.363,0.59716172]
[1773114063346,5.7614084,86.39,86.363,0.59716172]
[1773114064043,11.57554781,86.389,86.363,0.59716172]
[1773114064241,5.7614084,86.38,86.363,0.59716172]
[1773114067928,5.7614084,86.38,86.365,0.65119835]
[1773114070236,17.33816274,86.38,86.348,0.65119835]
[1773114071832,5.7614084,86.39,86.351,0.65119835]
[1773114072146,12.18590897,86.388,86.351,0.65119835]
[1773114074456,5.7614084,86.38,86.352,11.58050768]
[1773114074658,5.7614084,86.38,86.353,0.65119835]
[1773114075153,0.61021736,86.387,86.353,0.65119835]
[1773114075358,5.7614084,86.38,86.353,0.65119835]
[1773114076354,0.61021736,86.388,86.353,0.65119835]
[1773114076540,5.7614084,86.4,86.362,0.65119835]
[1773114077837,5.7614084,86.4,86.37,5.7614084]
[1773114078048,5.7614084,86.4,86.371,0.65119835]
[1773114078249,5.7614084,86.41,86.371,0.65119835]
[1773114078452,5.7614084,86.41,86.363,40.52661439]
[1773114078453,0.61021736,86.417,86.381,0.65119835]
[1773114078759,5.7614084,86.41,86.381,0.65119835]
[1773114083160,0.61021736,86.436,86.401,0.65119835]
[1773114083366,0.61021736,86.434,86.401,0.65119835]
[1773114083660,5.7614084,86.43,86.401,0.65119835]
[1773114085760,5.7614084,86.43,86.403,0.65119835]
[1773114085954,6.37162576,86.43,86.403,0.65119835]
[1773114086849,11.57019056,86.429,86.405,0.65119835]
[1773114087158,11.56944546,86.435,86.405,0.65119835]
[1773114087469,5.7614084,86.43,86.405,0.65119835]
[1773114087847,0.61021736,86.434,86.405,0.65119835]
[1773114089759,0.61021736,86.429,86.407,0.65119835]
[1773114090767,11.5696551,86.433,86.407,0.65119835]
[1773114090967,12.17987246,86.433,86.407,0.65119835]
[1773114091547,11.5696551,86.433,86.407,0.65119835]
[1773114091752,0.61021736,86.432,86.407,0.65119835]
[1773114096178,12.1422519,86.431,86.407,0.65119835]
[1773114096559,11.56941061,86.435,86.409,0.57259193]
[1773114097177,0.57232908,86.435,86.411,0.57259193]
[1773114097666,0.57232908,86.429,86.406,0.57259193]
[1773114099879,0.57232908,86.427,86.406,0.57259193]
[1773114102982,11.57059218,86.426,86.406,0.57259193]
[1773114105391,0.57232908,86.425,86.406,0.57259193]
[1773114108781,0.57232908,86.423,86.402,11.57367423]
[1773114108982,0.57232908,86.423,86.402,12.14626616]
[1773114109174,0.57232908,86.423,86.403,0.57259193]
[1773114110474,0.57232908,86.423,86.398,0.57259193]
[1773114110893,0.57232908,86.419,86.391,0.57259193]
[1773114112865,0.56723978,86.417,86.393,0.59100227]
[1773114115368,0.56723978,86.417,86.395,0.59100227]
[1773114118896,0.56723978,86.417,86.397,0.59100227]
[1773114120797,5.76190523,86.41,86.386,0.59100227]
[1773114120999,0.56723978,86.399,86.37,0.59100227]
[1773114121204,6.32914501,86.39,86.37,0.59100227]
[1773114121423,0.56723978,86.389,86.37,0.59100227]
[1773114122494,0.56723978,86.389,86.37,12.16901463]
[1773114122680,0.56723978,86.389,86.371,0.59100227]
[1773114123583,0.55200916,86.397,86.373,0.56809299]
[1773114124796,5.76190523,86.4,86.373,0.56809299]
[1773114125177,0.55200916,86.399,86.373,0.56809299]
[1773114126178,0.55200916,86.419,86.391,0.56809299]
[1773114126690,12.12364602,86.419,86.391,0.56809299]
[1773114128983,12.12364602,86.419,86.393,0.56809299]
[1773114129901,0.55200916,86.409,86.388,0.56809299]
[1773114130601,0.55200916,86.409,86.374,0.56809299]
[1773114131678,0.55200916,86.408,86.376,0.56809299]
[1773114133818,0.55200916,86.408,86.381,0.56809299]
[1773114134602,11.57313643,86.407,86.381,0.56809299]
[1773114134803,0.55200916,86.408,86.381,0.56809299]
[1773114135002,0.55200916,86.407,86.381,0.56809299]
[1773114136501,11.57327037,86.406,86.381,0.56809299]
[1773114136703,0.55200916,86.399,86.372,0.56809299]
[1773114139890,0.55200916,86.397,86.372,0.56809299]
[1773114140098,0.55200916,86.397,86.374,0.56809299]
[1773114141313,0.55200916,86.397,86.376,0.56809299]
[1773114141512,5.76190523,86.4,86.27,11.57327037]
[1773114141513,0.55200916,86.389,86.27,11.57327037]
[1773114141812,243.06680863,86.396,86.262,46.36991969]
[1773114141813,0.55200916,86.349,86.295,11.5881425]
[1773114142013,0.55200916,86.339,86.295,11.5881425]